Workbook

Sheet Precept Payment Form
A2: TO: MID DEVON DISTRICT COUNCIL | F2: FROM:
A3: F.A.O. Mrs Lynette Wright
A4: Phoenix House, Phoenix Lane, Tiverton, Devon EX16 6PP
A7: REQUEST FOR PAYMENT OF PRECEPT 2016/17
A8: Local Government Finance Act 1992
A10: You are hereby directed to pay: | F10: ='Calculation Sheet'!A8 -> Coldridge
A11: ( Parish/Town Council)
A13: Bank Name:-
A15: Bank Address:-
A19: Bank Account No :-
A20: Sort code :_
A22: The gross precept sum of | B22: £ | C22: =+'Calculation Sheet'!E11 -> 0 | E22: from the General Fund of the Authority
A23: to meet expenses payable by the Parish/Town Council.
A24: NB Please enter your gross precept amount, not the precept amount less your share of the grant
A25: Authorised at a meeting of the Parish/Town Council held on | H25: Date: | I25: / / | J25: /
A27: Signed: | H27: Date: | I27: / / | J27: /
B28: (Responsible Officer)
A31: *NB If you do not require a precept please complete as a nil return.
F34: DEVON ASSOCIATION OF LOCAL COUNCILS SUBSCRIPTION DEDUCTION
A36: In making a precept payment please deduct and pay to the D.A.L.C all sums notified and
A37: Authorised at a meeting of the Parish/Town Council held on / /
A38: Signed: | H38: Date: | I38: / / | J38: /
B39: (Responsible Officer)
B42: Office Use:
B43: Ref Name. (Min 3)
B45: GL Code | E45: Net Amount £ p | G45: Vat Code
B46: IE250 4641 | H46: 9
B47: Line Description
B48: Parish Precept 2016/17
B49: GL Code | E49: Net Amount £ p | G49: Vat Code
B50: CR496 8552 | H50: 9
B51: Line Description
B52: Parish DALC 2016-17 -
B54: Department Certification
C55: Serv/Good Rec'd | E55: Price/Extn Check | F55: Authorised Sign. | G55: Pay Officer Check

Sheet Calculation Sheet
A1: 2016/17 Town/Parish Precept Charges
A3: Please select your Town/Parish from the dropdown below:
C7: Grant Reduction: | E7: -0.35
A8: Coldridge | C8: Current Year | E8: Next year
C9: 2015/16 | E9: 2016/17
A11: Precept Requested (enter amount to calculate) | C11: =VLOOKUP(A8,'Parish Precepts Current'!$C$10:$P$71,5,FALSE) -> 4000
A12: Share of Council Tax Reduction Grant | C12: =-ROUND(VLOOKUP(A8,'Parish Precepts Current'!$C$10:$P$71,6,FALSE),2) -> -145.97 | E12: =-ROUND(VLOOKUP(A8,'Parish Precepts Future'!$C$10:$L$71,6,FALSE)*(100%+H7),2) -> -123.23
A13: Net Precept to be raised by Council Tax | B13: A | C13: =C11+C12 -> 3854.03 | E13: =E11+E12 -> -123.23
A15: Number of Band D at 98% collection | B15: B | C15: =VLOOKUP(A8,'Parish Precepts Current'!$C$10:$P$71,9,FALSE) -> 156.6312222 | E15: =VLOOKUP(A8,'Parish Precepts Future'!$C$10:$L$71,9,FALSE) -> 157.6275556
A17: Band D Parish Charge | B17: A divided by B | C17: =ROUND(C13/C15,2) -> 24.61 | E17: =ROUND(E13/E15,2) -> -0.78
E19: =(E17/C17)-1 -> -1.031694433 | F19: Rise
A21: Note
A22: An increase of £1,000 would increase your annual precept by: | E22: =ROUND(1000/E15,2) -> 6.34
B24: which is per week: | E24: =ROUND(E22/52,2) -> 0.12

Sheet Parish Precepts Current (hidden)
A1: PARISH PRECEPTS 2015/16
D5: Amount | E5: Share of | F5: Amount | G5: Amount | H5: Share of | I5: Amount | J5: Band D | K5: Band D | L5: Band D
A6: Parish | C6: Parish | D6: Required | E6: DCLG Grant | F6: Required | G6: Required | H6: DCLG Grant | I6: Required | J6: Equivalent | K6: Equivalent | L6: Parish
A7: Code | C7: Name | D7: (£) 13/14 | E7: of £98,000 | F7: From C/Tax | G7: (£) 15/16 | H7: of £63,700 | I7: From C/Tax | J7: Properties | K7: Properties | L7: Charge (£)
D8: (IE2504641) | E8: 13/14 | F8: 13/14 | G8: (IE2504641) | H8: 15/16 | I8: 15/16 | J8: 100% | K8: 98%
A10: 1 | C10: Bampton | D10: 36192 | E10: 2502.2 | F10: 33689.8 | G10: 36884 | H10: 1595.764863 | I10: 35288.23514 | J10: 744.16 | K10: 729.2768 | L10: 48.39
A11: 2 | C11: Bickleigh | D11: 3000 | E11: 302.64 | F11: 2697.36 | G11: 3500 | H11: 171.8754649 | I11: 3328.124535 | J11: 108.4288889 | K11: 106.2603111 | L11: 31.32
A12: 3 | C12: Bow | D12: 8500 | E12: 1886.11 | F12: 6613.89 | G12: 8500 | H12: 1179.093714 | I12: 7320.906286 | J12: 430.3844444 | K12: 421.7767556 | L12: 17.36
A13: 4 | C13: Bradninch | D13: 25000 | E13: 3191.93 | F13: 21808.07 | G13: 27000 | H13: 1962.825369 | I13: 25037.17463 | J13: 729.3577778 | K13: 714.7706222 | L13: 35.03
A14: 5 | C14: Brushford | D14: 0 | E14: 0 | F14: 0 | G14: 0 | H14: 0 | I14: 0 | J14: 24.40444444 | K14: 23.91635556 | L14: 0
A15: 6 | C15: Burlescombe | D15: 9000 | E15: 942.38 | F15: 8057.62 | G15: 9000 | H15: 552.431729 | I15: 8447.568271 | J15: 316.2811111 | K15: 309.9554889 | L15: 27.25
A16: 7 | C16: Butterleigh | D16: 100 | E16: 62.15 | F16: 37.85 | G16: 110 | H16: 39.54651444 | I16: 70.45348556 | J16: 54.93222222 | K16: 53.83357778 | L16: 1.31
A17: 8 | C17: Cadbury | D17: 500 | E17: 90.86 | F17: 409.14 | G17: 510 | H17: 75.00668656 | I17: 434.9933134 | J17: 64.98666667 | K17: 63.68693333 | L17: 6.83
A18: 9 | C18: Cadeleigh | D18: 2200 | E18: 19.59 | F18: 2180.41 | G18: 1520 | H18: 19.31242312 | I18: 1500.687577 | J18: 88.36111111 | K18: 86.59388889 | L18: 17.33
A19: 10 | C19: Chawleigh | D19: 12000 | E19: 782.28 | F19: 11217.72 | G19: 11950 | H19: 546.9004981 | I19: 11403.0995 | J19: 242.2233333 | K19: 237.3788667 | L19: 48.04
A20: 11 | C20: Cheriton Bishop | D20: 7450 | E20: 805.24 | F20: 6644.76 | G20: 8750 | H20: 459.8377501 | I20: 8290.16225 | J20: 280.54 | K20: 274.9292 | L20: 30.15
A21: 12 | C21: Cheriton Fitzpaine | D21: 10800 | E21: 760.32 | F21: 10039.68 | G21: 10850 | H21: 463.0028824 | I21: 10386.99712 | J21: 333.4933333 | K21: 326.8234667 | L21: 31.78
A22: 13 | C22: Clannaborough | D22: 0 | E22: 0 | F22: 0 | G22: 0 | H22: 0 | I22: 0 | J22: 26.05444444 | K22: 25.53335556 | L22: 0
A23: 14 | C23: Clayhanger (B Gate) | D23: 500 | E23: 56.75 | F23: 443.25 | G23: 584 | H23: 18.47597296 | I23: 565.524027 | J23: 58.50222222 | K23: 57.33217778 | L23: 9.86
A24: 15 | C24: Clayhidon | D24: 6750 | E24: 278.32 | F24: 6471.68 | G24: 7500 | H24: 237.0449661 | I24: 7262.955034 | J24: 221.4066667 | K24: 216.9785333 | L24: 33.47
A25: 16 | B25: 16 | C25: Coldridge | D25: 3300 | E25: 389.11 | F25: 2910.89 | G25: 4000 | H25: 145.9694871 | I25: 3854.030513 | J25: 159.8277778 | K25: 156.6312222 | L25: 24.61
A26: 17 | C26: Colebrooke | D26: 6000 | E26: 355 | F26: 5645 | G26: 6500 | H26: 222.3934198 | I26: 6277.60658 | J26: 175.1711111 | K26: 171.6676889 | L26: 36.57
A27: 18 | C27: Copplestone | D27: 6600 | E27: 1575.02 | F27: 5024.98 | G27: 8260 | H27: 976.6150465 | I27: 7283.384953 | J27: 428.5722222 | K27: 420.0007778 | L27: 17.34
A28: 19 | C28: Crediton | D28: 136800 | E28: 10890.05 | F28: 125909.95 | G28: 161897.47 | H28: 7164.975106 | I28: 154732.4949 | J28: 2585.11 | K28: 2533.4078 | L28: 61.08
A29: 20 | C29: Crediton Hamlets | D29: 4869 | E29: 1121.06 | F29: 3747.94 | G29: 5500 | H29: 659.9067932 | I29: 4840.093207 | J29: 528.8588889 | K29: 518.2817111 | L29: 9.34
A30: 21 | C30: Cruwys Morchard | D30: 2450 | E30: 246.57 | F30: 2203.43 | G30: 2650 | H30: 156.1214294 | I30: 2493.878571 | J30: 204.7888889 | K30: 200.6931111 | L30: 12.43
A31: 22 | C31: Cullompton | D31: 198000 | E31: 11014.69 | F31: 186985.31 | G31: 265001.42 | H31: 7501.420193 | I31: 257499.9998 | J31: 2999.581111 | K31: 2939.589489 | L31: 87.6
A32: 23 | C32: Culmstock | D32: 11746 | E32: 738.7 | F32: 11007.3 | G32: 15513 | H32: 514.1297339 | I32: 14998.87027 | J32: 356.2811111 | K32: 349.1554889 | L32: 42.96
A33: 24 | C33: Down St Mary | D33: 2500 | E33: 266.5 | F33: 2233.5 | G33: 2500 | H33: 166.9913107 | I33: 2333.008689 | J33: 151.48 | K33: 148.4504 | L33: 15.72
A34: 25 | C34: Eggesford | D34: 0 | E34: 0 | F34: 0 | G34: 0 | H34: 0 | I34: 0 | J34: 31.21333333 | K34: 30.58906667 | L34: 0
A35: 26 | C35: Halberton | D35: 11580 | E35: 1403.77 | F35: 10176.23 | G35: 12165 | H35: 927.634987 | I35: 11237.36501 | J35: 614.1211111 | K35: 601.8386889 | L35: 18.67
A36: 27 | C36: Hemyock | D36: 56350 | E36: 1570.29 | F36: 54779.71 | G36: 63500 | H36: 1197.361987 | I36: 62302.63801 | J36: 829.3688889 | K36: 812.7815111 | L36: 76.65
A37: 28 | C37: Hittisleigh | D37: 1600 | E37: 144.23 | F37: 1455.77 | G37: 1700 | H37: 58.56097988 | I37: 1641.43902 | J37: 60.32111111 | K37: 59.11468889 | L37: 27.77
A38: 29 | C38: Hockworthy (B Gate) | D38: 500 | E38: 59.45 | F38: 440.55 | G38: 583 | H38: 88.92761799 | I38: 494.072382 | J38: 83.19666667 | K38: 81.53273333 | L38: 6.06
A39: 30 | C39: Holcombe Rogus | D39: 5500 | E39: 400.26 | F39: 5099.74 | G39: 6390 | H39: 254.3329264 | I39: 6135.667074 | J39: 213.4211111 | K39: 209.1526889 | L39: 29.34
A40: 31 | C40: Huntsham (B Gate) | D40: 500 | E40: 96.6 | F40: 403.4 | G40: 583 | H40: 68.87786031 | I40: 514.1221397 | J40: 65.92111111 | K40: 64.60268889 | L40: 7.96
A41: 32 | C41: Kennerleigh | D41: 0 | E41: 0 | F41: 0 | G41: 0 | H41: 0 | I41: 0 | J41: 37.71222222 | K41: 36.95797778 | L41: 0
A42: 33 | C42: Kentisbeare | D42: 14716 | E42: 460.38 | F42: 14255.62 | G42: 16500 | H42: 394.6844372 | I42: 16105.31556 | J42: 372.0244444 | K42: 364.5839556 | L42: 44.17
A43: 34 | C43: Lapford | D43: 7140 | E43: 1925.29 | F43: 5214.71 | G43: 10000 | H43: 1334.753316 | I43: 8665.246684 | J43: 370.4155556 | K43: 363.0072444 | L43: 23.87
A44: 35 | C44: Loxbeare | D44: 0 | E44: 0 | F44: 0 | G44: 0 | H44: 0 | I44: 0 | J44: 75.87777778 | K44: 74.36022222 | L44: 0
A45: 36 | C45: Morchard Bishop | D45: 7000 | E45: 1028.17 | F45: 5971.83 | G45: 7140 | H45: 714.5901996 | I45: 6425.4098 | J45: 411.9788889 | K45: 403.7393111 | L45: 15.91
A46: 37 | C46: Morebath | D46: 6155 | E46: 293.86 | F46: 5861.14 | G46: 6155 | H46: 161.2378715 | I46: 5993.762129 | J46: 152.5055556 | K46: 149.4554444 | L46: 40.1
A47: 38 | C47: Newton St Cyres | D47: 8853 | E47: 1028.17 | F47: 7824.83 | G47: 12518 | H47: 716.3040291 | I47: 11801.69597 | J47: 361.27 | K47: 354.0446 | L47: 33.33
A48: 39 | C48: Nymet Rowland | D48: 600 | E48: 109.1 | F48: 490.9 | G48: 800 | H48: 93.19386506 | I48: 706.8061349 | J48: 49.77666667 | K48: 48.78113333 | L48: 14.49
A49: 40 | C49: Oakford | D49: 3095 | E49: 448.22 | F49: 2646.78 | G49: 3411 | H49: 234.6639009 | I49: 3176.336099 | J49: 178.2188889 | K49: 174.6545111 | L49: 18.19
A50: 41 | C50: Poughill | D50: 2000 | E50: 198.27 | F50: 1801.73 | G50: 2200 | H50: 110.9167733 | I50: 2089.083227 | J50: 78.72555556 | K50: 77.15104444 | L50: 27.08
A51: 42 | C51: Puddington | D51: 850 | E51: 202.32 | F51: 647.68 | G51: 1000 | H51: 124.8291523 | I51: 875.1708477 | J51: 86.31444444 | K51: 84.58815556 | L51: 10.35
A52: 43 | C52: Sampford Peverell | D52: 7900 | E52: 840.03 | F52: 7059.97 | G52: 8700 | H52: 594.3857294 | I52: 8105.614271 | J52: 493.9188889 | K52: 484.0405111 | L52: 16.75
A53: 44 | C53: Sandford | D53: 10656 | E53: 1265.29 | F53: 9390.71 | G53: 10993 | H53: 866.8108421 | I53: 10126.18916 | J53: 481.2788889 | K53: 471.6533111 | L53: 21.47
A54: 45 | C54: Shobrooke | D54: 5000 | E54: 774.17 | F54: 4225.83 | G54: 5000 | H54: 500.4797286 | I54: 4499.520271 | J54: 202.7555556 | K54: 198.7004444 | L54: 22.64
A55: 46 | C55: Silverton | D55: 32200 | E55: 2067.83 | F55: 30132.17 | G55: 20000 | H55: 1317.735366 | I55: 18682.26463 | J55: 772.6133333 | K55: 757.1610667 | L55: 24.67
A56: 47 | C56: Stockleigh English | D56: 0 | E56: 0 | F56: 0 | G56: 0 | H56: 0 | I56: 0 | J56: 28.61666667 | K56: 28.04433333 | L56: 0
A57: 48 | C57: Stockleigh Pomeroy | D57: 0 | E57: 0 | F57: 0 | G57: 0 | H57: 0 | I57: 0 | J57: 59.63444444 | K57: 58.44175556 | L57: 0
A58: 49 | C58: Stoodleigh | D58: 4000 | E58: 244.88 | F58: 3755.12 | G58: 3929 | H58: 124.1938351 | I58: 3804.806165 | J58: 146.4833333 | K58: 143.5536667 | L58: 26.5
A59: 50 | C59: Templeton | D59: 1262 | E59: 138.82 | F59: 1123.18 | G59: 1656.59 | H59: 39.12470043 | I59: 1617.4653 | J59: 63.13666667 | K59: 61.87393333 | L59: 26.14
A60: 51 | C60: Thelbridge | D60: 800 | E60: 212.46 | F60: 587.54 | G60: 1500 | H60: 144.0962175 | I60: 1355.903783 | J60: 134.2033333 | K60: 131.5192667 | L60: 10.31
A61: 52 | C61: Thorverton | D61: 13500 | E61: 846.79 | F61: 12653.21 | G61: 13770 | H61: 558.9762605 | I61: 13211.02374 | J61: 379.66 | K61: 372.0668 | L61: 35.51
A62: 53 | C62: Tiverton | D62: 236442 | E62: 34636.02 | F62: 201805.98 | G62: 267586.72 | H62: 22168.71532 | I62: 245418.0047 | J62: 6804.455556 | K62: 6668.37 | L62: 36.8
A63: 54 | C63: Uffculme | D63: 70000 | E63: 4606.85 | F63: 65393.15 | G63: 70000 | H63: 2865.571191 | I63: 67134.42881 | J63: 1036.81 | K63: 1016.0738 | L63: 66.07
A64: 55 | C64: Uplowman | D64: 2500 | E64: 170.57 | F64: 2329.43 | G64: 2900 | H64: 96.9517056 | I64: 2803.048294 | J64: 151.5433333 | K64: 148.5124667 | L64: 18.87
A65: 56 | C65: Upton Hellions | D65: 0 | E65: 0 | F65: 0 | G65: 0 | H65: 0 | I65: 0 | J65: 33.06666667 | K65: 32.40533333 | L65: 0
A66: 57 | C66: Washfield | D66: 1650 | E66: 236.78 | F66: 1413.22 | G66: 1594.88 | H66: 177.1073637 | I66: 1417.772636 | J66: 159.8577778 | K66: 156.6606222 | L66: 9.05
A67: 58 | C67: Washford Pyne | D67: 550 | E67: 76 | F67: 474 | G67: 500 | H67: 34.86425674 | I67: 465.1357433 | J67: 41.80444444 | K67: 40.96835556 | L67: 11.35
A68: 59 | C68: Wembworthy | D68: 3000 | E68: 249.27 | F68: 2750.73 | G68: 3000 | H68: 193.0503145 | I68: 2806.949685 | J68: 101.8488889 | K68: 99.81191111 | L68: 28.12
A69: 60 | C69: Willand | D69: 32337 | E69: 3439.51 | F69: 28897.49 | G69: 41700 | H69: 2364.612989 | I69: 39335.38701 | J69: 1144.963333 | K69: 1122.064067 | L69: 35.06
A70: 61 | C70: Woolfardisworthy | D70: 500 | E70: 171.25 | F70: 328.75 | G70: 500 | H70: 149.5938499 | I70: 350.4061501 | J70: 68.21555556 | K70: 66.85124444 | L70: 5.24
A71: 62 | C71: Zeal Monachorum | D71: 3250 | E71: 377.63 | F71: 2872.37 | G71: 4000 | H71: 193.2190707 | I71: 3806.780929 | J71: 156.2555556 | K71: 153.1304444 | L71: 24.86
D74: 1046243 | E74: 98000 | F74: 948243 | G74: =SUM(G10:G71) -> 1200455.08 | H74: =SUM(H10:H71) -> 63700 | I74: =SUM(I10:I71) -> 1136755.08 | J74: =SUM(J10:J71) -> 27846.69333 | K74: 27289.76302 | L74: 1459.12

Sheet Parish Precepts Future (hidden)
A1: PARISH PRECEPTS 2016/17
D5: Amount | E5: Share of | F5: Amount | G5: Amount | H5: Share of | I5: Amount | J5: Band D | K5: Band D | L5: Band D
A6: Parish | C6: Parish | D6: Required | E6: DCLG Grant | F6: Required | G6: Required | H6: DCLG Grant | I6: Required | J6: Equivalent | K6: Equivalent | L6: Parish
A7: Code | C7: Name | D7: (£) 13/14 | E7: of £98,000 | F7: From C/Tax | G7: (£) 15/16 | H7: of £55,250 | I7: From C/Tax | J7: Properties | K7: Properties | L7: Charge (£)
D8: (IE2504641) | E8: 13/14 | F8: 13/14 | G8: (IE2504641) | H8: 16/17 | I8: 16/17 | J8: 100% | K8: 98%
A10: 1 | C10: Bampton | D10: 36192 | E10: 2502.2 | F10: 33689.8 | H10: 1499.224187 | I10: -1499.224187 | J10: 758.3 | K10: 743.134
A11: 2 | C11: Bickleigh | D11: 3000 | E11: 302.64 | F11: 2697.36 | H11: 137.3998989 | I11: -137.3998989 | J11: 110.6333333 | K11: 108.4206667
A12: 3 | C12: Bow | D12: 8500 | E12: 1886.11 | F12: 6613.89 | H12: 967.3494335 | I12: -967.3494335 | J12: 441.7166667 | K12: 432.8823333
A13: 4 | C13: Bradninch | D13: 25000 | E13: 3191.93 | F13: 21808.07 | H13: 1792.996415 | I13: -1792.996415 | J13: 737.8611111 | K13: 723.1038889
A14: 5 | C14: Brushford | D14: 0 | E14: 0 | F14: 0 | H14: 12.2397919 | I14: -12.2397919 | J14: 25.09444444 | K14: 24.59255556
A15: 6 | C15: Burlescombe | D15: 9000 | E15: 942.38 | F15: 8057.62 | H15: 431.7598494 | I15: -431.7598494 | J15: 321.6944444 | K15: 315.2605556
A16: 7 | C16: Butterleigh | D16: 100 | E16: 62.15 | F16: 37.85 | H16: 35.11202073 | I16: -35.11202073 | J16: 52.51111111 | K16: 51.46088889
A17: 8 | C17: Cadbury | D17: 500 | E17: 90.86 | F17: 409.14 | H17: 40.91439186 | I17: -40.91439186 | J17: 65.22777778 | K17: 63.92322222
A18: 9 | C18: Cadeleigh | D18: 2200 | E18: 19.59 | F18: 2180.41 | H18: 8.725796318 | I18: -8.725796318 | J18: 89.32222222 | K18: 87.53577778
A19: 10 | C19: Chawleigh | D19: 12000 | E19: 782.28 | F19: 11217.72 | H19: 435.0300228 | I19: -435.0300228 | J19: 243.0111111 | K19: 238.1508889
A20: 11 | C20: Cheriton Bishop | D20: 7450 | E20: 805.24 | F20: 6644.76 | H20: 371.9196764 | I20: -371.9196764 | J20: 279.8388889 | K20: 274.2421111
A21: 12 | C21: Cheriton Fitzpaine | D21: 10800 | E21: 760.32 | F21: 10039.68 | H21: 375.0633281 | I21: -375.0633281 | J21: 332.3222222 | K21: 325.6757778
A22: 13 | C22: Clannaborough | D22: 0 | E22: 0 | F22: 0 | H22: 16.9897137 | I22: -16.9897137 | J22: 28.14444444 | K22: 27.58155556
A23: 14 | C23: Clayhanger (B Gate) | D23: 500 | E23: 56.75 | F23: 443.25 | H23: 3.223253235 | I23: -3.223253235 | J23: 58.76111111 | K23: 57.58588889
A24: 15 | C24: Clayhidon | D24: 6750 | E24: 278.32 | F24: 6471.68 | H24: 194.5102941 | I24: -194.5102941 | J24: 224.7 | K24: 220.206
A25: 16 | B25: 16 | C25: Coldridge | D25: 3300 | E25: 389.11 | F25: 2910.89 | H25: 123.2272941 | I25: -123.2272941 | J25: 160.8444444 | K25: 157.6275556
A26: 17 | C26: Colebrooke | D26: 6000 | E26: 355 | F26: 5645 | H26: 176.2744836 | I26: -176.2744836 | J26: 176.0555556 | K26: 172.5344444
A27: 18 | C27: Copplestone | D27: 6600 | E27: 1575.02 | F27: 5024.98 | H27: 889.3602388 | I27: -889.3602388 | J27: 426.8 | K27: 418.264
A28: 19 | C28: Crediton | D28: 136800 | E28: 10890.05 | F28: 125909.95 | H28: 6236.141226 | I28: -6236.141226 | J28: 2656.205556 | K28: 2603.081444
A29: 20 | C29: Crediton Hamlets | D29: 4869 | E29: 1121.06 | F29: 3747.94 | H29: 579.4764911 | I29: -579.4764911 | J29: 528.3555556 | K29: 517.7884444
A30: 21 | C30: Cruwys Morchard | D30: 2450 | E30: 246.57 | F30: 2203.43 | H30: 131.3522139 | I30: -131.3522139 | J30: 204.7666667 | K30: 200.6713333
A31: 22 | C31: Cullompton | D31: 198000 | E31: 11014.69 | F31: 186985.31 | H31: 6395.784406 | I31: -6395.784406 | J31: 3100.061111 | K31: 3038.059889
A32: 23 | C32: Culmstock | D32: 11746 | E32: 738.7 | F32: 11007.3 | H32: 479.7962084 | I32: -479.7962084 | J32: 352.2444444 | K32: 345.1995556
A33: 24 | C33: Down St Mary | D33: 2500 | E33: 266.5 | F33: 2233.5 | H33: 105.2560538 | I33: -105.2560538 | J33: 153.7555556 | K33: 150.6804444
A34: 25 | C34: Eggesford | D34: 0 | E34: 0 | F34: 0 | H34: 17.08748666 | I34: -17.08748666 | J34: 30.58888889 | K34: 29.97711111
A35: 26 | C35: Halberton | D35: 11580 | E35: 1403.77 | F35: 10176.23 | H35: 835.2321224 | I35: -835.2321224 | J35: 613.6333333 | K35: 601.3606667
A36: 27 | C36: Hemyock | D36: 56350 | E36: 1570.29 | F36: 54779.71 | H36: 1030.752556 | I36: -1030.752556 | J36: 839.6944444 | K36: 822.9005556
A37: 28 | C37: Hittisleigh | D37: 1600 | E37: 144.23 | F37: 1455.77 | H37: 50.07847142 | I37: -50.07847142 | J37: 60.58888889 | K37: 59.37711111
A38: 29 | C38: Hockworthy (B Gate) | D38: 500 | E38: 59.45 | F38: 440.55 | H38: 35.0622528 | I38: -35.0622528 | J38: 83.01111111 | K38: 81.35088889
A39: 30 | C39: Holcombe Rogus | D39: 5500 | E39: 400.26 | F39: 5099.74 | H39: 197.4916237 | I39: -197.4916237 | J39: 216.7388889 | K39: 212.4041111
A40: 31 | C40: Huntsham (B Gate) | D40: 500 | E40: 96.6 | F40: 403.4 | H40: 53.54229226 | I40: -53.54229226 | J40: 65.40555556 | K40: 64.09744444
A41: 32 | C41: Kennerleigh | D41: 0 | E41: 0 | F41: 0 | H41: 52.27002326 | I41: -52.27002326 | J41: 37.73888889 | K41: 36.98411111
A42: 33 | C42: Kentisbeare | D42: 14716 | E42: 460.38 | F42: 14255.62 | H42: 343.2948444 | I42: -343.2948444 | J42: 379.3888889 | K42: 371.8011111
A43: 34 | C43: Lapford | D43: 7140 | E43: 1925.29 | F43: 5214.71 | H43: 1143.661345 | I43: -1143.661345 | J43: 376.0111111 | K43: 368.4908889
A44: 35 | C44: Loxbeare | D44: 0 | E44: 0 | F44: 0 | H44: 57.78165204 | I44: -57.78165204 | J44: 76.28888889 | K44: 74.76311111
A45: 36 | C45: Morchard Bishop | D45: 7000 | E45: 1028.17 | F45: 5971.83 | H45: 627.1675935 | I45: -627.1675935 | J45: 414.4777778 | K45: 406.1882222
A46: 37 | C46: Morebath | D46: 6155 | E46: 293.86 | F46: 5861.14 | H46: 147.1853317 | I46: -147.1853317 | J46: 149.4 | K46: 146.412
A47: 38 | C47: Newton St Cyres | D47: 8853 | E47: 1028.17 | F47: 7824.83 | H47: 603.7218808 | I47: -603.7218808 | J47: 359.8388889 | K47: 352.6421111
A48: 39 | C48: Nymet Rowland | D48: 600 | E48: 109.1 | F48: 490.9 | H48: 67.68519897 | I48: -67.68519897 | J48: 49.92777778 | K48: 48.92922222
A49: 40 | C49: Oakford | D49: 3095 | E49: 448.22 | F49: 2646.78 | H49: 215.8268344 | I49: -215.8268344 | J49: 176.6055556 | K49: 173.0734444
A50: 41 | C50: Poughill | D50: 2000 | E50: 198.27 | F50: 1801.73 | H50: 74.37457837 | I50: -74.37457837 | J50: 81.12777778 | K50: 79.50522222
A51: 42 | C51: Puddington | D51: 850 | E51: 202.32 | F51: 647.68 | H51: 96.95864138 | I51: -96.95864138 | J51: 88.46111111 | K51: 86.69188889
A52: 43 | C52: Sampford Peverell | D52: 7900 | E52: 840.03 | F52: 7059.97 | H52: 428.1966283 | I52: -428.1966283 | J52: 500.6166667 | K52: 490.6043333
A53: 44 | C53: Sandford | D53: 10656 | E53: 1265.29 | F53: 9390.71 | H53: 725.9428321 | I53: -725.9428321 | J53: 495.1166667 | K53: 485.2143333
A54: 45 | C54: Shobrooke | D54: 5000 | E54: 774.17 | F54: 4225.83 | H54: 478.4810874 | I54: -478.4810874 | J54: 201.3722222 | K54: 197.3447778
A55: 46 | C55: Silverton | D55: 32200 | E55: 2067.83 | F55: 30132.17 | H55: 1102.131295 | I55: -1102.131295 | J55: 774.4222222 | K55: 758.9337778
A56: 47 | C56: Stockleigh English | D56: 0 | E56: 0 | F56: 0 | H56: 8.429358455 | I56: -8.429358455 | J56: 29.57222222 | K56: 28.98077778
A57: 48 | C57: Stockleigh Pomeroy | D57: 0 | E57: 0 | F57: 0 | H57: 39.57513279 | I57: -39.57513279 | J57: 60.17222222 | K57: 58.96877778
A58: 49 | C58: Stoodleigh | D58: 4000 | E58: 244.88 | F58: 3755.12 | H58: 108.0715355 | I58: -108.0715355 | J58: 147.1277778 | K58: 144.1852222
A59: 50 | C59: Templeton | D59: 1262 | E59: 138.82 | F59: 1123.18 | H59: 15.31319892 | I59: -15.31319892 | J59: 64.93888889 | K59: 63.64011111
A60: 51 | C60: Thelbridge | D60: 800 | E60: 212.46 | F60: 587.54 | H60: 130.0202776 | I60: -130.0202776 | J60: 133.6277778 | K60: 130.9552222
A61: 52 | C61: Thorverton | D61: 13500 | E61: 846.79 | F61: 12653.21 | H61: 481.0044706 | I61: -481.0044706 | J61: 374.8277778 | K61: 367.3312222
A62: 53 | C62: Tiverton | D62: 236442 | E62: 34636.02 | F62: 201805.98 | H62: 19542.16412 | I62: -19542.16412 | J62: 6741.281111 | K62: 6606.445489
A63: 54 | C63: Uffculme | D63: 70000 | E63: 4606.85 | F63: 65393.15 | H63: 2479.929733 | I63: -2479.929733 | J63: 1045.944444 | K63: 1025.025556
A64: 55 | C64: Uplowman | D64: 2500 | E64: 170.57 | F64: 2329.43 | H64: 87.58084449 | I64: -87.58084449 | J64: 150.0833333 | K64: 147.0816667
A65: 56 | C65: Upton Hellions | D65: 0 | E65: 0 | F65: 0 | H65: 31.10088827 | I65: -31.10088827 | J65: 33.01666667 | K65: 32.35633333
A66: 57 | C66: Washfield | D66: 1650 | E66: 236.78 | F66: 1413.22 | H66: 144.521188 | I66: -144.521188 | J66: 161.8888889 | K66: 158.6511111
A67: 58 | C67: Washford Pyne | D67: 550 | E67: 76 | F67: 474 | H67: 27.31472855 | I67: -27.31472855 | J67: 40.77222222 | K67: 39.95677778
A68: 59 | C68: Wembworthy | D68: 3000 | E68: 249.27 | F68: 2750.73 | H68: 111.6271625 | I68: -111.6271625 | J68: 106.75 | K68: 104.615
A69: 60 | C69: Willand | D69: 32337 | E69: 3439.51 | F69: 28897.49 | H69: 2063.289571 | I69: -2063.289571 | J69: 1149.161111 | K69: 1126.177889
A70: 61 | C70: Woolfardisworthy | D70: 500 | E70: 171.25 | F70: 328.75 | H70: 63.09719246 | I70: -63.09719246 | J70: 70.61666667 | K70: 69.20433333
A71: 62 | C71: Zeal Monachorum | D71: 3250 | E71: 377.63 | F71: 2872.37 | H71: 93.90733838 | I71: -93.90733838 | J71: 159.9388889 | K71: 156.7401111
D74: 1046243 | E74: 98000 | F74: 948243 | G74: =SUM(G10:G71) -> 0 | H74: =SUM(H10:H71) -> 55250 | I74: =SUM(I10:I71) -> -55250 | J74: 28068.40333 | K74: 27507.02527 | L74: 0
G78: Control

Sheet Sheet1
